Cogmind - Beta 10.2 @@@ ROGUE MODE // 2021.01.09 @ 01:41:57 Player: Cape Result: Destroyed by G-34 Mercenary with Small Laser Performance ------------- Evolutions (0) 0 Regions Visited (1) 200 Robots Destroyed (10) 50 Value Destroyed (330) 330 Prototype IDs (2) 40 Alien Tech Used (0) 0 Bonus (0) 0 TOTAL SCORE: 620 Bonus ------- None Cogmind --------- Core Integrity 0/250 Matter 186/400 Energy 250/250 System Corruption 0% Temperature Cool (6) Movement Walking (120) Location -10/Materials Parts ------- > --- POWER (1) -------- Ion Engine > --- PROPULSION (2) --- Aluminum Leg Aluminum Leg > --- UTILITY (2) ------ Medium Matter Pod Seismic Analyzer > --- WEAPON (2) ------- EM Pulse Gun Hammer > --- INVENTORY (4) ---- Weight Redist. System Propulsion Shielding Hardened Light Armor Plating Peak State ------------ > --- POWER ------------ Light Ion Engine > --- PROPULSION ------- Aluminum Leg Aluminum Leg > --- UTILITY ---------- Heat Sink Seismic Analyzer > --- WEAPON ----------- Small Laser Grenade Launcher > --- INVENTORY -------- Aluminum Leg Heat Sink Small Laser [Rating: 7] Favorites ----------- Power Light Ion Engine Engine Light Ion Engine Propulsion Aluminum Leg Leg Aluminum Leg Wheel Wheel Hover Unit Backup Propulsion I Flight Unit Flight Unit Utility Seismic Analyzer Device Heat Sink Storage Medium Matter Pod Processor Seismic Analyzer Weapon Grenade Launcher Energy Gun Small Laser Ballistic Gun Light Assault Rifle Launcher Grenade Launcher Impact Weapon Hammer Build | -11 -10 ------- Run | Scr Mat Slots Evolved . | . . Power . | . . Propulsion . | . . Utility . | . . Weapon . | . . Parts Attached 33 | 12 21 Power 5 | 2 3 Engine 5 | 2 3 Core . | . . Reactor . | . . Propulsion 14 | 6 8 Treads . | . . Leg 11 | 4 7 Wheel 2 | 2 . Hover . | . . Flight 1 | . 1 Utility 4 | 1 3 Device 1 | . 1 Storage 2 | . 2 Processor 1 | 1 . Hackware . | . . Protection . | . . Artifact . | . . Weapon 10 | 3 7 Energy Gun 5 | 2 3 Energy Cannon . | . . Ballistic Gun 2 | 1 1 Ballistic Cannon . | . . Launcher 2 | . 2 Special Weapon . | . . Impact Weapon 1 | . 1 Slashing Weapon . | . . Piercing Weapon . | . . Special Melee Weapon . | . . Unidentified Prototypes . | . . Parts Lost 6 | 3 3 Power 1 | 1 . Propulsion 2 | 1 1 Utility . | . . Weapon 3 | 1 2 Highest Loss Streak 3 | 3 2 Average Slot Usage (%) 82 | . 82 Engine 11 | . 11 Leg 23 | . 23 Storage 8 | . 8 Processor 14 | . 14 Energy Gun 13 | . 13 Launcher 8 | . 8 Impact Weapon 1 | . 1 Naked Turns . | . . Heaviest Build 23 | 6 23 Greatest Support 20 | 20 20 Greatest Overweight (x) 3 | . 3 Average Overweight (x) . | . . Largest Inventory Capacity 10 | 4 10 Average Capacity 4 | 4 4 Most Carried 4 | 4 4 Average Carried 2 | 1 3 Final Capacity 4 | 4 4 Final Carried 3 | 2 3 Class Distribution -------------------- 92% | Mutant 7% | Scavenger-Mutant Dominant Class ---------------- Mutant | -10/Materials Resources | -11 -10 ----------- Run | Scr Mat Matter Collected 530 | 331 199 Remotely . | . . Salvage Created 289 | 49 240 Parts 24 | 5 19 Haulers Intercepted . | . . Recyclers Shooed . | . . Parts Field Recycled . | . . Retrieved Matter . | . . Parts Self-Destructed . | . . Prevented . | . . Kills | -11 -10 ------- Run | Scr Mat Combat Hostiles Destroyed 7 | 1 6 Guns 5 | 1 4 AOE 2 | . 2 Classes Destroyed 3 | 2 1 Builder 1 | . 1 Tunneler 2 | 1 1 Grunt 7 | 1 6 Best Kill Streak 3 | 1 3 Combat Bots Only 2 | 1 2 Max Kills in Single Turn 1 | 1 1 Gunslinging . | . . Exploded 1 | . 1 Melee . | . . Uniques/NPCs Destroyed . | . . Combat | -11 -10 -------- Run | Scr Mat Damage Taken 994 | 337 657 Core 256 | 112 144 Absorbed by Shields . | . . Core Remaining (%) 55 | 55 . Volleys Fired 65 | 40 25 Largest 2 | 2 2 Hottest 80 | 60 80 Shots Fired 78 | 42 36 Gun 67 | 42 25 Cannon . | . . Launcher 11 | . 11 Special . | . . Kinetic 40 | 40 . Thermal 21 | . 21 Explosive 11 | . 11 Electromagnetic 6 | 2 4 Robot Hit Streak 7 | 5 7 Robot Miss Streak 3 | 3 2 Penetration Max . | . . Secondary Targets . | . . Shots Hit Robots 43 | 13 30 Core Hits 23 | 4 19 Critical Hits . | . . Critical Kills . | . . Critical Parts Destroyed . | . . Melee Attacks 5 | . 5 Impact 5 | . 5 Slashing . | . . Piercing . | . . Sneak Attacks . | . . Combat Hostiles . | . . Follow-up Attacks . | . . Damage Inflicted 736 | 125 611 Guns 322 | 124 198 Cannons . | . . Explosions 337 | . 337 Melee 76 | . 76 Ramming 1 | 1 . Kinetic 97 | 97 . Thermal 155 | . 155 Explosive 337 | . 337 Electromagnetic 70 | 27 43 Impact 76 | . 76 Slashing . | . . Piercing . | . . Highest Corruption . | . . Average Corruption . | . . Corruption Purged . | . . Overload Shots . | . . Overflow Damage 17 | . 17 Projectiles . | . . Explosions 17 | . 17 Melee . | . . Knockbacks 1 | . 1 Impact 1 | . 1 Kinetic . | . . Secondary . | . . Self-Inflicted Damage 85 | . 85 Shots 5 | . 5 Rammed 1 | 1 . Targets Rammed 2 | 1 1 Kicked 1 | . 1 Crushed . | . . Highest Temperature 60 | 32 60 Average Temperature 15 | 8 17 Received Heat Transfer 501 | 180 321 Siege Activations . | . . Robots Corrupted . | . . Combat Hostiles . | . . Parts Fried . | . . Impact Corruptions . | . . Robots Melted . | . . Combat Hostiles . | . . Parts Melted . | . . Heat Transferred 409 | . 409 Parts Sabotaged . | . . Parts Stolen . | . . Parts Stripped . | . . Power Chain Reactions . | . . Missiles Intercepted . | . . Alert | -11 -10 ------- Run | Scr Mat Peak Influence 223 | 20 223 Initial 13 | . 13 Average 93 | 6 122 Maximum Alert Level 1 | . 1 Low Security (%) 76 | 100 68 Level 1 23 | . 31 Level 2 . | . . Level 3 . | . . Level 4 . | . . Level 5 . | . . High Security . | . . Max Security . | . . Squads Dispatched 2 | . 2 Investigation 1 | . 1 Extermination . | . . Reinforcement 1 | . 1 Assault . | . . Garrison . | . . Intercept . | . . Construction Impeded . | . . Haulers Reinforced . | . . Stealth | -11 -10 --------- Run | Scr Mat Distress Signals 2 | . 2 Communications Jammed . | . . Distress Signals . | . . Times Spotted 19 | 1 18 Peak Tracking Total 4 | 1 4 Tactical Retreats 2 | . 2 Traps | -11 -10 ------- Run | Scr Mat Traps Triggered 3 | . 3 Indirectly . | . . Trap Hack Attempts . | . . Triggered . | . . Disarmed . | . . Reprogrammed . | . . Reused . | . . Traps Extracted . | . . Installed . | . . Triggered . | . . Machines | -11 -10 ---------- Run | Scr Mat Machines Disabled 6 | . 6 Max in Single Turn 2 | . 2 Machines Sabotaged . | . . Garrisons Compromised . | . . Overloaded Fab Kills . | . . Fab Network Shutdowns . | . . Hacking | -11 -10 --------- Run | Scr Mat Machines Accessed 6 | . 6 Terminals 4 | . 4 Fabricators . | . . Repair Stations 1 | . 1 Recycling Units 1 | . 1 Scanalyzers . | . . Garrison Access . | . . Total Hacks 38 | . 38 Successful 24 | . 24 Failed 14 | . 14 Catastrophic 2 | . 2 Database Lockouts . | . . Manual 1 | . 1 Terminals 20 | . 20 Fabricators . | . . Repair Stations 6 | . 6 Recycling Units 12 | . 12 Scanalyzers . | . . Garrison Access . | . . Terminal Hacks 10 | . 10 Record 3 | . 3 Robot Analysis 1 | . 1 Prototype ID Bank 1 | . 1 Emergency Access Points 1 | . 1 Alert Level 2 | . 2 Zone Layout 2 | . 2 Fabricator Hacks . | . . Repair Station Hacks 5 | . 5 Scan Component 2 | . 2 Repair 2 | . 2 Refit 1 | . 1 Recycling Unit Hacks 9 | . 9 Recycle Component 2 | . 2 Process 1 | . 1 Report Inventory 2 | . 2 Retrieve Matter 3 | . 3 Retrieve Components 1 | . 1 Scanalyzer . | . . Garrison Access Hacks . | . . Unauthorized Hacks . | . . Terminals . | . . Fabricators . | . . Repair Stations . | . . Recycling Units . | . . Scanalyzers . | . . Garrison Access . | . . Data Cores Recovered . | . . Used . | . . Hacking Detections 6 | . 6 Full Trace Events 3 | . 3 Feedback Events . | . . Feedback Blocked . | . . Robot Schematics Acquired . | . . Robots Built . | . . Matter . | . . Time . | . . Total Robot Build Rating . | . . Part Schematics Acquired . | . . Parts Built . | . . Matter . | . . Time . | . . Total Part Build Rating . | . . Parts Repaired 1 | . 1 Time 52 | . 52 Parts Recycled 2 | . 2 Recycled Matter 4 | . 4 Retrieved Matter 4 | . 4 Retrieved Components 1 | . 1 Parts Scanalyzed . | . . Part Schematics Acquired . | . . Parts Damaged . | . . Bothacking | -11 -10 ------------ Run | Scr Mat Used RIF Installer . | . . Robots Hacked . | . . Non-combat . | . . Combat . | . . Robot Hacks Applied . | . . Relay Couplers Released . | . . Robots Rewired . | . . Allies Hacked . | . . Hacks Repelled . | . . Allies | -11 -10 -------- Run | Scr Mat Total Allies . | . . Largest Group . | . . Highest-Rated Group . | . . Highest-Rated Ally . | . . Total Orders . | . . Ally Attacks . | . . Total Damage . | . . Kills . | . . Allies Corrupted . | . . Allies Melted . | . . Intel | -11 -10 ------- Run | Scr Mat Robot Analysis Total 1 | . 1 Derelict Logs Recovered . | . . Drone Launches . | . . Drone Recoveries . | . . Exploration | -11 -10 ------------- Run | Scr Mat Turns Passed 919 | 234 685 Spaces Moved 580 | 150 430 Core 93 | 28 65 Treads . | . . Legs 419 | 55 364 Wheels 67 | 67 . Hover 1 | . 1 Flight . | . . Fastest Speed 50 | 50 50 Average Speed 110 | 89 118 Slowest Speed 200 | 120 200 Overloaded Moves . | . . Propulsion Burnouts . | . . Robots Hopped . | . . Cave-ins Triggered . | . . Exploration Rate (%) 32 | 7 58 Regions Visited 1 Branch Regions . Pre-discovered Areas . | . . Known Exits Taken . | . . Unknown Exits Taken 1 | 1 . Scrap Searched . | . . Spaces Dug . | . . Terrain Destroyed 46 | . 46 Melee . | . . Projectile . | . . AOE 46 | . 46 Terrain Rammed . | . . Walls Destroyed . | . . Machines Disabled . | . . Actions | -11 -10 --------- Run | Scr Mat Total 793 | 218 575 Wait 45 | . 45 Move 579 | 149 430 Hop . | . . Pick Up 39 | 12 27 Fast Attach . | . . Attach 33 | 12 21 Detach 9 | 3 6 Swap . | . . Drop 16 | 1 15 Fire 65 | 40 25 Melee 5 | . 5 Ram 1 | 1 . Kick 1 | . 1 Crush . | . . Escape Stasis . | . . Rewire . | . . Trap . | . . Miscellaneous . | . . Route ------- -11/Scrapyard -10/Materials (discovered 4 exits: [*Mat x2] / [*Min x2]) History --------- Turn | Location | Event 2 | -11/Scrapyard | Met Revision 17 80 | -11/Scrapyard | Discovered new exit (range 8) 172 | -11/Scrapyard | Lost 3 parts (1p1n1w) 235 | -11/Scrapyard | Entered Materials 301 | -10/Materials | Build established: Mutant 506 | -10/Materials | Discovered new exit (range 9) 562 | -10/Materials | Discovered new exit (range 8) 618 | -10/Materials | Discovered new exit (range 12) 679 | -10/Materials | Repaired Aluminum Leg 726 | -10/Materials | Core integrity fell below 50% 787 | -10/Materials | Core integrity fell below 20% 886 | -10/Materials | Discovered new exit (range 10) 920 | -10/Materials | Destroyed by G-34 Mercenary with Small Laser Last Messages --------------- Med. Laser destroyed. Aluminum Leg destroyed. Acquired 42 matter. Triggered Blade Trap. Massive razor-sharp blades shoot up from within the floor. Aluminum Leg severed. Acquired EM Pulse Gun. G-34 Mercenary destroyed. Acquired 35 matter. Acquired Ion Engine. Acquired 50 matter. Acquired Ion Engine. Dropped Ion Engine. Acquired Aluminum Leg. Acquired Hammer. Bump into an enemy to attack with the active melee weapon. Even while active, melee weapons do not fire together with ranged weapons in the same volley. EXIT=FOUND G-47 Trooper knocked back. [Achievement: First Step to Greatness] Map ----- +----------------------------------------------------+ | # # """# ## #????????# """ """" ? | | # + # ## #????????# " "" """"?? ? | | # ####### ######+####????????# """" """?????? | | # #?# ????????? ?????? | | # #?# ????????? ????? | | # #?# ???????? ?? ???? | | # #?# #####+########????????########????# ????? | | # #?# ## #????????????????????????????? | | # #?# ## #????????????????????????????? | | # ### ## #????????????????????????????? | | # ## # #????????????????????????????? | | # """ """ #????????????????????????????? | | = T # """ """ #????????????????????????????? | | # """ """ #????????????????????????????? | | ##### # #????????????????????????????? | | ????#################????????????????????????????? | | ####???# = #????????????????????????????????? | | #??## """"" #????????????????????????????????? | | #### = """"" #????????????????????????????????? | | + " #????????????????????????????????? | | #### #????##################??????????? | | #???# "= #????# ?????????? | | ##???# #????# ?????????? | | #????# """ #????# ????????? | | #????# #????# gg ?????????? | | #????#####+######### @ #????????????????? | | #########= + # #????????????????? | | ## T *+ # """ + ###+####????????????????? | | # # # """"" # #???????????????????????? | | # # # """"" # #???????????????????????? | | < #""" # # """"" # #???????????????????????? | | #""" +=^# """ # #???????????????????????? | | ""#""" # # [# #???????????????????????? | | ||"## # # ! # #???????????????????????? | | ""### # # # #???????????????????????? | | ########### # # #???????????????????????? | | # # < #???????????????????????? | | [ * ######### #???????????????????????? | | /###### #???????#####???????????????????????? | | ! #! !#???????????????????????????????????? | | #! !#???????????????????????????????????? | | !! ##!!!!##???????????????????????????????????? | | !! #######????????????????????????????????????? | | !! #??????????????????????????????????????????? | | #??????????????????????????????????????????? | | #??????????????????????????????????????????? | | #######??????????????????????????????????????????? | | | | | | | +----------------------------------------------------+ Best States ------------- Heat Dissipation 35 Energy Generation 10 Energy Capacity 250 Matter Stores 300 Matter Capacity 400 Sight Range 16 Terrain Scan Density 60 Evasion (%) 50 Item Schematics ----------------- None Robot Schematics ------------------ None Fabricated ------------ Nothing Alien Tech Used ----------------- None Achievements -------------- First Step to Greatness One Hack Too Far Part-time Mechanic Uninvited Guest Challenges ------------ None Game ------ Seed SniperLinearMaul Manual? 0 Play Time 00:57:45 Cumulative 1.8 hours Start 2021.01.09 @ 00:16:06 End 2021.01.09 @ 01:41:57 Sessions 5 Manual Loads 0 Difficulty Rogue Special Mode None Game No. 1 Rogue 1 Adventurer 0 Explorer 0 Win Type - Total 0 Types 0/0/0/0/0/0/0/0/0 Lore% 0 Gallery% 1 Achievement% 1 Wizard Run 0 Options --------- ASCII 0 Keyboard 1 Movement Vi Keybinds 1 Fullscreen 1 Font 12/Terminus Map View 83x54 Tactical HUD 0 Map Filters NONE Filters NONE Steam 1 RUN: 48f7fd69-2b1e-4967-b12a-79725bb5ad8f